bitfinex/quotes_ETHUSD_20250220
["timestamp","ask_amount","ask_price","bid_price","bid_amount"]
[1740014473612,0.764,2729.7,2729.4,0.265]
[1740014474014,0.09623554,2729.6,2729.4,0.265]
[1740014474214,0.764,2729.5,2729.4,0.265]
[1740014474414,5.85296871,2729.5,2729.1,3.66412]
[1740014474723,5.85296871,2729.5,2728.9,3.66439]
[1740014474929,3.66384,2729.4,2728.7,3.66471]
[1740014475118,0.7932,2729.3,2728.8,0.265]
[1740014475319,0.88898968,2729.3,2728.7,3.92965]
[1740014475517,0.88898968,2729.3,2728.7,0.265]
[1740014475722,1.93873354,2729.3,2728.7,0.265]
[1740014476095,1.93873354,2729.3,2728.7,3.92971]
[1740014476300,1.93873354,2729.3,2728.7,3.66471]
[1740014476523,1.93873354,2729.3,2728.7,3.6647]
[1740014476724,1.93873354,2729.3,2728.9,3.66439]
[1740014477528,0.88898968,2729.3,2729.0,3.66425]
[1740014477934,0.88898968,2729.3,2729.1,3.6642]
[1740014478299,0.88898968,2729.3,2728.9,3.66438]
[1740014478501,4.9929561,2729.2,2728.9,3.66438]
[1740014479001,0.09550037,2729.1,2728.9,3.66438]
[1740014480429,0.09550037,2729.1,2729.0,3.66434]
[1740014481639,0.09550037,2729.1,2728.9,3.66438]
[1740014482207,0.09550037,2729.1,2728.9,7.32877]
[1740014482408,0.09550037,2729.1,2729.0,3.66434]
[1740014483520,0.09550037,2729.1,2728.9,7.32876]
[1740014483718,0.09550037,2729.1,2729.0,3.66434]
[1740014484812,0.09550037,2729.1,2728.9,3.66438]
[1740014485356,0.09550037,2729.1,2728.7,7.32935]
[1740014485653,0.7779,2729.0,2728.7,3.66466]
[1740014485952,0.09533931,2728.9,2728.8,3.66458]
[1740014486156,0.09533931,2728.9,2728.8,4.43458]
[1740014486456,4.9929561,2729.2,2728.9,3.66436]
[1740014486748,4.9929561,2729.2,2729.1,3.66421]
[1740014486949,4.9929561,2729.2,2728.9,3.66435]
[1740014487619,4.9929561,2729.2,2729.0,3.66423]
[1740014487953,4.9929561,2729.2,2729.1,3.66421]
[1740014489219,4.9929561,2729.2,2729.1,4.397054]
[1740014490438,4.9929561,2729.6,2729.4,3.66375]
[1740014491234,4.9929561,2729.6,2729.2,3.664]
[1740014492456,4.9929561,2729.6,2729.0,4.45752]
[1740014492658,4.9929561,2729.6,2729.2,3.66396]
[1740014492862,4.9929561,2729.6,2729.0,0.7932]
[1740014493158,4.9929561,2729.6,2729.3,3.66385]
[1740014494161,4.9929561,2729.6,2729.4,3.66378]
[1740014494726,4.9929561,2729.6,2729.2,3.66402]
[1740014495126,4.9929561,2729.6,2729.3,3.66393]
[1740014495728,4.9929561,2729.6,2729.2,7.328]
[1740014495941,4.9929561,2729.6,2729.3,3.66392]
[1740014496749,4.9929561,2729.6,2729.4,3.6638]
[1740014497562,4.9929561,2729.6,2729.2,3.66396]
[1740014497758,4.9929561,2729.6,2729.3,3.66393]
[1740014498365,4.9929561,2729.6,2729.3,7.32778]
[1740014498686,4.9929561,2729.6,2729.3,3.66385]
[1740014498985,4.9929561,2729.6,2729.3,7.3277]
[1740014499180,4.9929561,2729.6,2729.4,3.6637]
[1740014499382,4.9929561,2729.6,2729.5,3.66367]
[1740014500431,5.08499006,2729.6,2729.5,3.66367]
[1740014502465,5.08499006,2729.6,2729.4,4.7055]
[1740014502673,5.08499006,2729.6,2729.5,3.66367]
[1740014503038,0.09203396,2729.6,2729.5,3.66367]
[1740014503346,4.9929561,2729.8,2729.7,3.6634]
[1740014503740,4.9929561,2729.8,2729.7,4.4718]
[1740014505466,4.9929561,2729.8,2729.6,3.66353]
[1740014505656,4.9929561,2729.8,2729.6,3.66346]
[1740014506366,4.9929561,2729.8,2729.6,3.66344]
[1740014506960,4.9929561,2729.8,2729.6,7.32689]
[1740014507470,4.9929561,2729.8,2729.6,3.66344]
[1740014507638,4.9929561,2729.8,2729.6,7.3269]
[1740014507838,4.9929561,2729.8,2729.6,3.66344]
[1740014508763,4.9929561,2729.8,2729.5,3.66366]
[1740014508965,4.9929561,2729.8,2729.4,0.265]
[1740014509168,4.9929561,2729.8,2729.6,3.66344]
[1740014509869,4.9929561,2729.8,2729.7,3.6634]
[1740014510055,4.9929561,2729.8,2729.7,5.170584]
[1740014510768,4.9929561,2729.8,2729.7,4.4379]
[1740014511138,5.08551856,2729.8,2729.7,4.4379]
[1740014514074,0.09256246,2729.8,2729.7,4.4379]
[1740014514466,4.9929561,2730.2,2729.7,4.4379]
[1740014514669,0.09256246,2730.1,2729.9,3.66304]
[1740014514877,0.09256246,2730.1,2730.0,3.663]
[1740014515076,0.09256246,2730.1,2729.9,3.66304]
[1740014515263,0.09256246,2730.1,2729.9,7.32608]
[1740014515483,0.09256246,2730.1,2729.9,3.66304]
[1740014515696,0.09256246,2730.1,2730.0,3.663]
[1740014516067,0.09256246,2730.1,2729.9,7.32605]
[1740014516378,0.09256246,2730.1,2729.9,3.66301]
[1740014516590,0.09256246,2730.1,2729.9,7.32606]
[1740014517307,0.09256246,2730.1,2729.9,7.32604]
[1740014517501,0.09256246,2730.1,2730.0,3.663]
[1740014520316,0.09256246,2730.1,2729.8,3.66326]
[1740014520518,0.09256246,2730.1,2729.7,3.66332]
[1740014520882,0.09256246,2730.1,2729.8,3.66326]
[1740014521220,0.09256246,2730.1,2729.8,3.66315]
[1740014521616,0.09256246,2730.1,2729.6,3.66344]
[1740014521818,0.7864,2730.0,2729.6,3.66344]
[1740014522019,0.7864,2730.0,2729.4,3.66373]
[1740014522189,0.09290476,2729.9,2729.5,0.265]
[1740014522888,0.09290476,2729.9,2729.5,3.92858]
[1740014523131,0.09290476,2729.9,2729.5,0.265]
[1740014523291,0.54712324,2729.9,2729.5,0.265]
[1740014523488,0.7778,2729.8,2729.2,0.7984]
[1740014523720,0.0927485,2729.7,2729.1,3.66412]
[1740014524031,4.9929561,2729.6,2729.2,0.265]
[1740014524397,0.09268152,2729.5,2729.2,0.265]
[1740014525621,0.09268152,2729.5,2729.0,4.42771]
[1740014525788,0.7703,2729.4,2728.8,0.8166]
[1740014525992,0.7703,2729.4,2729.1,0.265]
[1740014526415,0.0923317,2729.3,2729.1,0.265]
[1740014526648,0.0923317,2729.3,2729.1,3.9292]
[1740014527729,0.0923317,2729.3,2729.1,0.265]
[1740014528741,0.0923317,2729.3,2729.2,3.66407]
[1740014529049,0.0923317,2729.3,2729.1,3.92911]
[1740014530019,0.0923317,2729.3,2729.1,0.265]
[1740014530243,0.0923317,2729.3,2729.1,3.9292]
[1740014530446,0.0923317,2729.3,2729.1,0.265]
[1740014533246,5.0852878,2729.3,2728.8,4.48108]
[1740014533562,5.0852878,2729.3,2728.6,3.6648]
[1740014533563,0.8206,2729.2,2728.6,3.6648]
[1740014533747,0.8206,2729.2,2728.7,0.265]
[1740014533954,0.09212327,2729.1,2728.7,0.265]
[1740014534562,0.09212327,2729.1,2728.7,3.92973]
[1740014535098,0.8206,2729.0,2728.3,0.7844]
[1740014535377,0.09174361,2728.9,2728.4,3.93006]
[1740014535527,0.09174361,2728.9,2728.5,3.66493]
[1740014535727,0.09174361,2728.9,2728.6,4.4492]
[1740014536139,0.09174361,2728.9,2728.7,3.66473]
[1740014536544,0.09174361,2728.9,2728.6,0.7844]
[1740014537275,0.09174361,2728.9,2728.6,4.44926]
[1740014537572,0.09174361,2728.9,2728.5,3.6649]
[1740014537767,0.09174361,2728.9,2728.5,7.3298]
[1740014537978,5.08469971,2728.9,2728.5,3.6649]
[1740014538639,5.08469971,2728.9,2728.4,0.8194]
[1740014538863,4.47992,2728.7,2728.0,4.46167]
[1740014539059,9.4728761,2728.7,2728.1,0.265]
[1740014539233,0.09119255,2728.6,2728.1,0.265]
[1740014539446,3.75614255,2728.6,2728.0,1.0611]
[1740014539647,0.09119255,2728.6,2728.0,0.265]
[1740014539845,0.09119255,2728.6,2728.0,0.54090573]
[1740014540151,0.09119255,2728.5,2728.0,0.54090573]
[1740014540472,3.75622255,2728.5,2728.0,0.54090573]
[1740014540669,0.8151,2728.4,2728.0,0.265]
[1740014541270,0.09093187,2728.3,2728.0,0.265]
[1740014541700,4.21339806,2728.3,2727.8,8.235]
[1740014541904,0.8291,2728.2,2727.8,8.5]
[1740014542272,0.09043277,2728.1,2727.8,8.5]
[1740014543213,0.09043277,2728.1,2727.9,3.66574]
[1740014544210,0.09043277,2728.1,2728.0,3.66568]
[1740014544873,0.09043277,2728.1,2728.0,5.329842]
[1740014545068,4.9929561,2728.2,2728.1,4.48085]
[1740014546910,4.9929561,2728.6,2728.4,3.66506]
[1740014547275,0.09029868,2728.5,2728.4,3.66506]
[1740014552955,0.7588,2728.7,2728.4,3.66506]
[1740014553291,0.09058177,2728.5,2728.4,3.66506]
[1740014553509,0.09058177,2728.5,2728.3,3.66528]
[1740014553711,0.09058177,2728.5,2728.4,3.66515]
[1740014553916,0.7588,2728.7,2728.5,3.66501]
[1740014555209,0.7588,2728.7,2728.4,3.66507]
[1740014556024,0.7588,2728.7,2728.1,3.66548]
[1740014556216,0.7588,2728.7,2728.3,3.66515]
[1740014556415,1.201133,2728.7,2728.3,3.66515]
[1740014557520,1.201133,2728.7,2728.2,3.66536]
[1740014558123,1.201133,2728.7,2728.3,3.66527]
[1740014558794,6.1940891,2728.7,2728.3,3.66527]
[1740014559025,6.1940891,2728.7,2728.1,7.33095]
[1740014559328,6.1940891,2728.7,2728.1,7.33087]
[1740014559522,6.1940891,2728.7,2728.2,3.66537]
[1740014560529,0.09055197,2728.6,2728.2,3.66537]
[1740014561098,0.09055197,2728.6,2728.3,3.66521]
[1740014561711,0.09055197,2728.6,2728.3,7.33041]
[1740014562011,0.09055197,2728.6,2728.3,3.6652]
[1740014562497,0.09055197,2728.6,2728.1,7.33092]
[1740014562697,4.48183,2728.5,2728.0,0.265]
[1740014562929,0.09056689,2728.4,2727.9,3.93076]
[1740014563428,0.8168,2728.3,2727.9,0.265]
[1740014563635,2.1398513,2728.3,2727.9,0.265]
[1740014563793,0.09055944,2728.2,2727.9,0.265]
[1740014564257,2.1398513,2728.3,2727.9,0.265]
[1740014564397,0.09041787,2728.1,2727.9,0.265]
[1740014564727,0.09041787,2728.0,2727.9,3.93074]
[1740014564936,0.8168,2728.3,2727.9,3.93074]
[1740014565098,0.09041787,2728.2,2727.9,3.93074]
[1740014565299,1.76427861,2728.3,2727.9,0.265]
[1740014565598,0.09041787,2728.2,2727.9,0.265]
[1740014566136,0.09041787,2728.1,2727.9,3.66581]
[1740014566461,1.76427861,2728.3,2727.9,3.66581]
[1740014567040,0.09041787,2728.2,2727.9,3.66581]
[1740014567411,1.76427861,2728.3,2727.9,3.66581]
[1740014567614,0.09041787,2728.1,2727.9,3.66581]
[1740014567836,0.8168,2728.3,2727.9,3.66581]
[1740014568133,1.76427861,2728.3,2727.9,3.66581]
[1740014568333,0.09041787,2728.2,2727.9,3.66581]
[1740014568538,1.76427861,2728.3,2727.9,3.66581]
[1740014568902,0.09041787,2728.2,2727.8,0.265]
[1740014569097,1.76427861,2728.3,2727.8,3.93087]
[1740014569334,0.09041787,2728.2,2727.9,3.66581]
[1740014569645,1.76427861,2728.3,2727.9,3.66581]
[1740014569813,0.09041787,2728.1,2727.9,3.66581]
[1740014570014,1.76427861,2728.3,2727.9,3.66581]
[1740014570216,0.09041787,2728.0,2727.9,3.66581]
[1740014570439,0.8168,2728.3,2727.9,3.66581]
[1740014570737,5.8097561,2728.3,2727.9,3.66581]
[1740014570901,0.09041787,2728.2,2727.9,3.66581]
[1740014571103,6.75723471,2728.3,2727.9,3.66581]
[1740014571301,0.09041787,2728.2,2727.9,3.66581]
[1740014571534,6.75723471,2728.3,2727.9,3.66581]
[1740014571926,0.09041787,2728.2,2727.9,3.66581]
[1740014572233,6.75723471,2728.3,2727.9,3.66581]
[1740014572431,0.09041787,2728.1,2727.9,3.66581]
[1740014572643,5.8097561,2728.3,2727.9,3.66574]
[1740014572845,0.09041787,2728.0,2727.9,3.66574]
[1740014573046,5.8097561,2728.3,2727.9,3.66574]
[1740014573246,0.09041787,2728.0,2727.9,3.66574]
[1740014573449,5.8097561,2728.3,2728.0,3.66568]
[1740014573620,5.8097561,2728.3,2727.9,3.66574]
[1740014574221,5.8097561,2728.3,2728.0,3.66565]
[1740014574849,5.8097561,2728.3,2727.9,3.66574]
[1740014575332,6.75723471,2728.3,2727.8,0.265]
[1740014575724,0.09040297,2728.2,2727.9,3.66581]
[1740014576023,6.75723471,2728.3,2727.9,3.66581]
[1740014576234,0.09040297,2728.1,2727.9,3.66581]
[1740014576447,5.8097561,2728.3,2727.9,3.66581]
[1740014576761,6.75723471,2728.3,2727.9,3.66581]
[1740014576950,0.09040297,2728.2,2727.9,3.66581]
[1740014577153,5.8097561,2728.3,2727.9,3.66581]
[1740014577353,0.09040297,2728.2,2727.9,3.66581]
[1740014577558,5.8097561,2728.3,2727.9,3.66581]
[1740014577721,0.09040297,2728.2,2727.9,3.66581]
[1740014577919,5.8097561,2728.3,2727.9,3.66581]
[1740014578122,0.09040297,2728.2,2727.9,3.66581]
[1740014578441,6.75723471,2728.3,2727.9,3.66581]
[1740014578645,0.09040297,2728.1,2727.8,0.265]
[1740014578954,0.09040297,2728.0,2727.9,3.66581]
[1740014579284,5.8097561,2728.3,2727.9,3.66581]
[1740014579452,0.09040297,2728.0,2727.9,3.66581]
[1740014579654,5.8097561,2728.3,2727.9,3.66581]
[1740014579826,0.09040297,2728.0,2727.9,3.66581]
[1740014580023,5.8097561,2728.3,2727.9,3.66581]
[1740014580249,0.09040297,2728.0,2727.9,3.66581]
[1740014580456,5.8097561,2728.3,2727.9,3.66581]
[1740014580658,0.09040297,2728.0,2727.9,3.66581]
[1740014581274,5.8097561,2728.3,2727.7,3.93097]
[1740014581461,0.09040297,2728.0,2727.7,3.93097]
[1740014581778,9.4750561,2728.3,2727.7,3.93097]
[1740014581969,0.09040297,2727.9,2727.7,3.93097]
[1740014582171,1.68018233,2728.2,2727.7,0.265]
[1740014582379,0.09040297,2727.8,2727.7,0.265]
[1740014582544,0.7607,2727.9,2727.6,3.6661]
[1740014582747,5.4365853,2727.8,2727.3,0.7961]
[1740014583104,0.7607,2727.7,2727.2,3.93168]
[1740014583222,1.68018233,2727.6,2727.2,0.265]
[1740014583419,1.77032452,2727.6,2727.2,0.265]
[1740014583860,1.77032452,2727.6,2727.2,3.93173]
[1740014584226,1.77032452,2727.6,2727.1,0.7961]
[1740014584578,1.77032452,2727.6,2727.2,3.66674]
[1740014584726,0.09014219,2727.6,2727.2,3.66674]
[1740014586445,0.09014219,2727.6,2727.1,1.0611]
[1740014586644,0.09014219,2727.6,2727.0,3.66695]
[1740014586645,0.8001,2727.4,2726.9,0.8099]
[1740014586845,0.8001,2727.4,2726.9,0.265]
[1740014587069,0.08928045,2727.3,2726.9,0.265]
[1740014587672,0.8165,2727.2,2726.8,0.265]
[1740014587875,5.8094561,2727.2,2726.8,0.265]
[1740014588103,0.08923573,2727.1,2727.0,3.66692]
[1740014588539,0.08923573,2727.1,2727.0,5.181332]
[1740014589851,4.9929561,2727.5,2727.2,3.66666]
[1740014590047,4.9929561,2727.5,2727.1,3.66677]
[1740014590270,0.08572563,2727.4,2727.1,3.66677]
[1740014590560,0.08572563,2727.4,2727.0,0.7545]
[1740014590561,0.08572563,2727.4,2727.0,4.42147]
[1740014590767,0.08572563,2727.4,2727.3,3.66663]
[1740014592180,0.08572563,2727.4,2727.2,3.6667]
[1740014592848,0.08572563,2727.4,2727.3,3.66663]
[1740014594484,0.08572563,2727.4,2727.2,3.66676]
[1740014594672,0.08572563,2727.4,2727.3,3.66663]
[1740014595177,0.08572563,2727.4,2727.2,3.66676]
[1740014595383,0.08572563,2727.4,2727.3,3.66663]
[1740014596156,0.08572563,2727.4,2727.2,3.66674]
[1740014596353,0.08572563,2727.4,2727.0,4.42145]
[1740014596587,0.08572563,2727.4,2727.0,3.66695]
[1740014596781,0.8103,2727.3,2727.0,3.93194]
[1740014597280,0.08572563,2727.2,2727.0,0.265]
[1740014597473,0.8103,2727.3,2726.8,3.66718]
[1740014597674,0.08572563,2727.1,2726.9,0.265]
[1740014597871,0.8103,2727.3,2727.0,3.66703]
[1740014598056,0.08572563,2727.0,2726.9,3.93216]
[1740014598258,0.8103,2727.3,2726.9,3.93216]
[1740014598458,0.08572563,2727.0,2726.9,0.265]
[1740014598659,0.8103,2727.3,2726.9,3.93215]
[1740014598888,0.08572563,2727.0,2726.9,3.93215]
[1740014599088,0.8103,2727.3,2726.9,3.93215]
[1740014599314,0.08572563,2727.0,2726.6,0.8152]
[1740014599587,6.75021771,2727.3,2726.6,3.66755]
[1740014599588,0.08572563,2726.9,2726.6,3.66755]
[1740014599773,0.08572563,2726.9,2726.5,0.265]
[1740014599774,0.7584,2726.8,2726.5,0.265]
[1740014599990,0.08564359,2726.7,2726.5,0.265]
[1740014600410,0.7584,2726.8,2726.5,0.265]
[1740014600610,0.58369997,2726.7,2726.5,0.265]
[1740014600886,0.7584,2726.8,2726.5,0.265]
[1740014601089,0.08524096,2726.6,2726.5,3.93269]
[1740014601288,0.7584,2726.8,2726.5,3.93269]
[1740014601498,0.08524096,2726.6,2726.5,3.93269]
[1740014601671,4.9929561,2726.9,2726.5,3.93269]
[1740014602053,0.08507331,2726.8,2726.5,3.93269]
[1740014602484,0.08507331,2726.8,2726.5,3.93262]
[1740014602679,0.08507331,2726.8,2726.5,3.66762]
[1740014602869,0.08507331,2726.8,2726.5,7.33522]
[1740014603279,0.08507331,2726.8,2726.5,3.6676]
[1740014604989,0.08507331,2726.8,2726.6,3.66754]
[1740014605489,0.08507331,2726.8,2726.5,3.6676]
[1740014605681,0.08507331,2726.8,2726.5,7.33521]
[1740014606293,5.07802941,2726.8,2726.5,3.6676]
[1740014606493,5.07802941,2726.8,2726.6,3.66753]
[1740014606666,5.07802941,2726.8,2726.7,3.66743]
[1740014606859,5.07802941,2726.8,2726.7,4.950933]
[1740014607993,0.08507331,2726.8,2726.7,8.739433]
[1740014608360,4.9929561,2727.2,2726.7,5.072003]
[1740014608563,4.9929561,2727.2,2727.1,3.66689]
[1740014609021,4.9929561,2727.2,2727.1,4.47049]
[1740014609163,4.9929561,2727.2,2727.1,5.284242]
[1740014609893,4.9929561,2727.2,2727.1,5.834242]
[1740014610192,4.9929561,2727.2,2727.1,2.167352]
[1740014610402,4.9929561,2727.2,2727.0,3.66703]
[1740014611395,4.9929561,2727.2,2726.8,4.47854]
[1740014611898,4.9929561,2727.2,2727.1,3.66689]
[1740014612067,4.9929561,2727.2,2727.0,3.667]
[1740014612474,4.9929561,2727.2,2727.1,3.66689]
[1740014612664,4.9929561,2727.2,2727.0,3.66691]
[1740014612864,4.9929561,2727.2,2727.1,3.66689]
[1740014613618,4.9929561,2727.2,2727.1,4.21689]
[1740014613806,4.9929561,2727.2,2727.1,5.77987]
[1740014614590,0.7519,2727.6,2727.1,5.77987]
[1740014614591,0.7519,2727.6,2727.5,3.66636]
[1740014614789,0.7519,2727.6,2727.2,0.55]
[1740014614790,5.8161561,2727.8,2727.6,3.66611]
[1740014615000,5.8161561,2727.8,2727.6,7.33225]
[1740014615301,5.8161561,2727.8,2727.6,3.66611]
[1740014616382,5.8161561,2727.8,2727.6,7.33224]
[1740014616958,4.9929561,2727.8,2727.7,3.66609]
[1740014617070,4.9929561,2727.8,2727.6,3.66611]
[1740014617381,5.49519171,2727.8,2727.4,3.6664]
[1740014617579,5.49519171,2727.8,2727.4,7.3328]
[1740014617905,5.49519171,2727.8,2727.4,3.6664]
[1740014618103,5.49519171,2727.8,2727.5,3.66634]
[1740014618706,5.49519171,2727.8,2727.4,3.6664]
[1740014619510,5.49519171,2727.8,2727.5,3.66634]
[1740014620403,0.0850512,2727.7,2727.4,3.6664]
[1740014620607,0.8967512,2727.7,2727.4,3.6664]
[1740014620815,0.8967512,2727.7,2727.5,3.66631]
[1740014621221,0.8967512,2727.7,2727.4,3.6664]
[1740014621710,0.8967512,2727.7,2727.3,3.66655]
[1740014622021,0.8967512,2727.7,2727.2,4.2167]
[1740014622242,4.34307193,2727.7,2727.1,0.265]
[1740014622387,0.7692,2727.6,2727.1,0.265]
[1740014622583,0.08527488,2727.5,2727.1,0.265]
[1740014622898,0.789,2727.4,2727.0,3.93194]
[1740014623086,0.789,2727.4,2727.0,7.59889]
[1740014623287,0.789,2727.4,2727.0,3.66694]
[1740014623518,0.0851034,2727.3,2727.0,3.66694]
[1740014624118,5.0780595,2727.3,2727.0,3.66694]
[1740014625322,5.0780595,2727.3,2726.9,0.265]
[1740014625523,5.0780595,2727.3,2727.1,3.66687]
[1740014625823,5.0780595,2727.3,2726.9,3.93209]
[1740014626519,5.0780595,2727.3,2726.9,3.66709]
[1740014626689,5.66476545,2727.3,2726.8,3.66722]
[1740014626891,5.66476545,2727.3,2726.8,3.93222]
[1740014627524,5.66476545,2727.3,2726.8,0.265]
[1740014627725,0.7623,2727.2,2726.7,0.55]
[1740014628042,5.66476545,2727.3,2565.3,0.00505051]
[1740014628043,0.7623,2727.0,2726.2,0.751]
[1740014628246,7.89676455,2726.8,2726.1,3.66821]
[1740014628451,7.89676455,2726.8,2726.1,3.93321]
[1740014628598,0.08472311,2726.7,2726.1,3.93321]
[1740014628922,3.66751,2726.7,2726.1,0.55]
[1740014629117,5.62481746,2726.6,2726.0,0.265]
[1740014629293,2.04195057,2726.6,2726.0,3.66835]
[1740014630513,2.04195057,2726.6,2726.1,3.66823]
[1740014630729,0.88552311,2726.6,2726.2,3.66809]
[1740014631966,0.08472311,2726.6,2726.4,3.66775]
[1740014632134,0.08472311,2726.6,2726.5,3.6677]
[1740014632303,6.19049895,2726.9,2726.5,3.6677]
[1740014632506,0.08391753,2726.6,2726.3,4.49387]
[1740014632843,0.08391753,2726.5,2726.3,3.66786]
[1740014633434,0.08391753,2726.4,2726.3,3.6679]
[1740014633833,4.9929561,2726.8,2726.3,3.6679]
[1740014634029,0.08391753,2726.4,2726.3,3.6679]
[1740014634228,4.9929561,2726.8,2726.3,3.6679]
[1740014634435,0.08391753,2726.4,2726.3,3.6679]
[1740014634634,4.9929561,2726.8,2726.3,3.6679]
[1740014634802,0.08391753,2726.4,2726.3,3.6679]
[1740014635137,4.9929561,2726.8,2726.3,3.6679]
[1740014635342,0.08391753,2726.4,2726.3,3.6679]
[1740014635639,0.08391753,2726.4,2726.1,7.60131]
[1740014635843,0.7796,2726.7,2726.1,3.93313]
[1740014636013,0.08391753,2726.3,2726.2,3.66805]
[1740014636213,0.7796,2726.7,2726.2,3.66805]
[1740014636449,0.08391753,2726.3,2726.2,3.66805]
[1740014636625,0.7796,2726.7,2726.2,3.66805]
[1740014636825,0.7796,2726.7,2726.4,3.66779]
[1740014637024,0.08394378,2726.6,2726.4,3.66779]
[1740014637226,0.08394378,2726.6,2726.3,3.66796]
[1740014637615,0.08394378,2726.6,2726.4,3.66783]
[1740014637947,0.08394378,2726.6,2726.2,4.21802]
[1740014638122,0.66959377,2726.6,2726.1,3.66815]
[1740014638326,0.7817,2726.5,2726.2,0.265]
[1740014638728,0.7817,2726.5,2726.2,3.93309]
[1740014638975,0.08394378,2726.4,2726.2,0.265]
[1740014639471,0.72836877,2726.4,2725.9,3.66846]
[1740014639627,0.72836877,2726.4,2726.0,3.93335]
[1740014640533,0.72836877,2726.4,2726.1,3.66821]
[1740014640737,0.08394378,2726.4,2726.2,3.66803]
[1740014640928,0.08394378,2726.4,2726.3,3.66797]
[1740014642120,0.08394378,2726.4,2726.2,7.33605]
[1740014642447,0.08394378,2726.4,2726.3,3.66797]
[1740014645346,0.08394378,2726.4,2726.3,4.21797]
[1740014646758,0.08394378,2726.4,2726.3,8.03747]
[1740014647136,4.9929561,2726.5,2726.4,7.21784]
[1740014647545,0.7628,2727.0,2726.4,3.66776]
[1740014647738,0.7628,2727.0,2726.3,0.8195]
[1740014647739,0.7628,2727.0,2726.2,3.66798]
[1740014647919,5.4387541,2727.1,2726.2,3.66798]
[1740014647920,0.7628,2726.8,2726.2,3.66798]
[1740014648148,0.7628,2726.6,2726.3,0.265]
[1740014648360,4.9929561,2726.5,2726.3,0.265]
[1740014648532,5.07704908,2726.5,2726.3,0.265]
[1740014650041,5.07704908,2726.5,2726.3,3.93289]
[1740014650441,5.07704908,2726.5,2726.3,0.265]
[1740014650688,5.66103399,2726.5,2726.3,0.265]
[1740014651536,5.66103399,2726.5,2726.0,3.6683]
[1740014651537,0.765,2726.4,2726.0,3.9333]
[1740014651988,3.66829,2726.1,2725.7,0.1490261]
[1740014652174,0.8212,2725.9,2725.7,0.1490261]
[1740014652572,0.08379454,2725.8,2725.7,0.1490261]
[1740014654057,8.46007065,2726.0,2725.7,0.1490261]
[1740014654260,0.08379454,2725.8,2725.7,0.1490261]
[1740014654564,0.85438652,2725.8,2725.7,0.1490261]
[1740014654774,0.93818106,2725.8,2725.7,0.1490261]
[1740014655858,0.08379454,2725.8,2725.7,0.1490261]
[1740014656060,4.9929561,2726.0,2725.9,3.66851]
[1740014656391,3.46711455,2726.6,2726.0,3.66833]
[1740014656392,4.9929561,2726.3,2726.0,3.66833]
[1740014656597,4.9929561,2726.3,2726.1,3.66813]
[1740014656752,4.9929561,2726.3,2726.2,3.6681]
[1740014656953,4.9929561,2726.3,2726.1,3.66813]
[1740014657297,4.9929561,2726.3,2726.2,3.6681]
[1740014658251,4.9929561,2726.3,2726.2,0.733647]
[1740014658457,4.9929561,2726.3,2726.0,3.66829]
[1740014659306,4.9929561,2726.3,2725.8,3.93355]
[1740014659507,4.9929561,2726.3,2725.9,0.265]
[1740014660855,8.6610061,2726.3,2725.9,0.265]
[1740014661054,3.46711455,2726.2,2725.7,0.1490261]
[1740014661279,0.86610061,2726.2,2725.7,3.8177761]
[1740014661589,0.86610061,2726.2,2725.8,3.66864]
[1740014661791,0.86610061,2726.2,2725.7,3.8177461]
[1740014661988,0.86610061,2726.2,2725.7,0.1490261]
[1740014662192,0.86610061,2726.2,2725.7,3.8177861]
[1740014662502,0.86610061,2726.2,2725.7,0.1490261]
[1740014662664,0.86610061,2726.2,2725.8,3.66856]
[1740014663060,0.86610061,2726.2,2725.7,3.8177661]
[1740014663962,0.58590567,2726.1,2725.7,3.8177861]
[1740014664289,0.58590567,2726.1,2725.7,0.1490261]
[1740014664672,4.9929561,2726.0,2725.7,0.1490261]
[1740014664890,8.6613361,2726.0,2725.7,0.1490261]
[1740014665458,0.08208262,2725.9,2725.7,0.1490261]
[1740014665659,0.64817706,2725.9,2725.7,0.1490261]
[1740014668591,4.9929561,2725.8,2725.7,0.1490261]
[1740014668960,5.07491926,2725.8,2725.7,0.1490261]
[1740014676171,8.74355926,2725.8,2725.7,0.1490261]
[1740014677702,9.57225926,2725.8,2725.7,0.1490261]
[1740014677900,11.29966008,2725.8,2725.7,0.1490261]
[1740014678303,14.76677463,2725.8,2725.7,0.1490261]
[1740014678498,11.29966008,2725.8,2725.7,0.1490261]
[1740014678823,0.7501,2724.9,2724.2,0.7868]
[1740014679122,0.1,2725.6,2723.8,0.7868]
[1740014679123,4.4206,2724.5,2723.8,0.7868]
[1740014679321,3.46711455,2724.4,2723.8,0.7868]
[1740014679623,3.46711455,2724.4,2723.8,4.45812]
[1740014679824,0.08097381,2724.3,2723.8,4.45812]
[1740014680192,0.08097381,2724.3,2723.8,0.7868]
[1740014680925,0.08097381,2724.3,2724.2,4.4485]
[1740014681095,0.7821,2724.7,2724.3,3.67056]
[1740014681297,0.8139,2724.9,2724.4,3.67052]
[1740014681610,0.8139,2724.9,2724.3,0.265]
[1740014681814,1.60896046,2724.9,2724.3,3.9356]
[1740014682223,1.60896046,2724.9,2724.3,0.265]
[1740014682603,1.60896046,2724.9,2724.4,3.67051]
[1740014683427,1.60896046,2724.9,2724.3,3.93565]
[1740014683805,1.60896046,2724.9,2724.4,3.6705]
[1740014684227,0.5076075,2724.8,2724.4,3.6705]
[1740014684628,0.5076075,2724.8,2724.3,3.93566]
[1740014685028,0.5076075,2724.8,2724.4,3.6705]
[1740014685623,0.8139,2724.9,2724.5,3.67026]
[1740014685923,0.8139,2724.9,2724.4,3.6705]
[1740014686292,0.8139,2724.9,2724.5,3.67035]
[1740014686497,4.9929561,2724.8,2724.4,3.6705]
[1740014687631,4.9929561,2724.8,2724.4,7.34093]
[1740014687794,4.9929561,2724.8,2724.5,3.67037]
[1740014688128,5.92035316,2724.8,2724.4,3.67043]
[1740014688648,5.92035316,2724.8,2724.3,3.93561]
[1740014688928,5.92035316,2724.8,2724.4,3.67051]
[1740014690327,5.92035316,2724.8,2724.3,0.265]